bitfinex-derivatives/quotes_BTCF0:USTF0_20251030
["timestamp","ask_amount","ask_price","bid_price","bid_amount"]
[1761815366721,1.55518792,110660.0,110650.0,0.001]
[1761815368527,1.58755014,110660.0,110650.0,0.001]
[1761815369927,2.18755014,110660.0,110650.0,0.001]
[1761815370525,0.05578,110640.0,110630.0,1.5]
[1761815370716,1.12370843,110640.0,110630.0,1.5]
[1761815370922,1.12380753,110640.0,110630.0,1.5]
[1761815371717,1.12480753,110640.0,110630.0,1.5]
[1761815374831,1.41480753,110640.0,110630.0,1.5]
[1761815375030,0.05578,110610.0,110600.0,0.3608]
[1761815375331,0.5207497,110610.0,110600.0,0.37399705]
[1761815375528,0.5207497,110610.0,110600.0,1.87399705]
[1761815375834,0.54209166,110610.0,110600.0,1.8608]
[1761815376232,0.03440301,110610.0,110600.0,2.11289539]
[1761815376425,0.33345301,110610.0,110600.0,2.11289539]
[1761815376628,0.35478301,110610.0,110600.0,2.11561539]
[1761815376829,0.36777301,110610.0,110600.0,2.11561539]
[1761815377130,0.07919301,110610.0,110600.0,1.86352]
[1761815377330,0.5529908,110610.0,110600.0,1.8608]
[1761815377834,0.5519908,110610.0,110600.0,1.8608]
[1761815378326,0.39031301,110610.0,110600.0,1.8608]
[1761815378829,0.5519908,110610.0,110600.0,1.8608]
[1761815379231,0.39031301,110610.0,110600.0,1.8608]
[1761815379533,0.55125591,110610.0,110600.0,1.8608]
[1761815379735,0.55225591,110610.0,110600.0,1.8608]
[1761815383931,0.39031301,110610.0,110600.0,1.8608]
[1761815384130,0.55225591,110610.0,110600.0,1.8608]
[1761815384428,0.57031591,110610.0,110600.0,1.8608]
[1761815384639,0.73225881,110610.0,110600.0,1.5]
[1761815384934,0.05578,110600.0,110590.0,0.00011466]
[1761815385125,0.7799521,110600.0,110590.0,0.00011466]
[1761815385539,0.4560663,110600.0,110590.0,0.00011466]
[1761815385837,0.6180092,110600.0,110590.0,0.00011466]
[1761815386033,0.9307692,110600.0,110590.0,0.16205756]
[1761815386239,0.9307692,110600.0,110590.0,0.00011466]
[1761815386427,0.6190092,110600.0,110590.0,0.00011466]
[1761815386628,0.5709692,110600.0,110590.0,0.00011466]
[1761815386824,0.9317692,110600.0,110590.0,0.00011466]
[1761815387035,1.0937121,110600.0,110590.0,0.00011466]
[1761815387229,1.0756521,110600.0,110590.0,0.00011466]
[1761815387435,1.0937121,110600.0,110590.0,0.00011466]
[1761815387640,0.0782063,110600.0,110590.0,0.16205756]
[1761815387830,0.0782063,110600.0,110570.0,0.39119875]
[1761815387831,0.04279,110590.0,110570.0,0.02120592]
[1761815388032,0.04279,110560.0,110550.0,0.05617]
[1761815388238,0.24413486,110560.0,110550.0,0.2181129]
[1761815388434,0.58687486,110560.0,110550.0,0.2181129]
[1761815388742,0.0586,110530.0,110520.0,0.0458]
[1761815388942,0.22911242,110530.0,110520.0,0.07233844]
[1761815389130,0.58991242,110530.0,110520.0,0.07233844]
[1761815389328,0.20785232,110530.0,110520.0,0.07233844]
[1761815389534,0.20785232,110530.0,110520.0,0.67505844]
[1761815389735,0.20785232,110530.0,110520.0,0.67233844]
[1761815390239,0.20885232,110530.0,110520.0,0.07233844]
[1761815393747,0.20885232,110530.0,110520.0,0.16282144]
[1761815393944,0.18617232,110530.0,110520.0,0.68828434]
[1761815394150,0.5685529,110540.0,110530.0,0.1496348]
[1761815394442,0.3470158,110540.0,110530.0,0.47789324]
[1761815394644,0.3470158,110540.0,110530.0,1.43869324]
[1761815394950,0.2077529,110550.0,110540.0,0.1496266]
[1761815395153,0.20786072,110550.0,110540.0,0.1496266]
[1761815395334,0.16183508,110550.0,110540.0,0.6292895]
[1761815395540,0.2077529,110560.0,110550.0,0.05916]
[1761815395850,0.3696958,110560.0,110550.0,0.37428]
[1761815396052,0.7304958,110560.0,110550.0,0.37428]
[1761815396244,0.7304958,110560.0,110550.0,0.05916]
[1761815396449,0.7304958,110560.0,110550.0,0.37428]
[1761815397052,0.7344958,110560.0,110550.0,0.05916]
[1761815397351,0.7344958,110560.0,110550.0,0.37432]
[1761815398440,0.7364958,110560.0,110550.0,0.37432]
[1761815398947,0.04581,110540.0,110530.0,0.6723735]
[1761815399253,0.2077529,110540.0,110530.0,0.9875335]
[1761815399651,0.1850729,110540.0,110530.0,0.9875335]
[1761815399852,0.5873429,110560.0,110550.0,0.0458]
[1761815400155,0.77048694,110560.0,110550.0,0.37428]
[1761815400356,0.7505558,110560.0,110550.0,0.37428]
[1761815400648,0.002,110560.0,110550.0,1.2202012]
[1761815400847,0.5685529,110570.0,110560.0,0.05916]
[1761815401042,0.40661,110570.0,110560.0,0.1496101]
[1761815401240,0.5685529,110570.0,110560.0,0.1496101]
[1761815402043,0.5685529,110570.0,110560.0,0.311553]
[1761815402443,0.5685529,110570.0,110560.0,0.314273]
[1761815402752,0.5685529,110570.0,110560.0,0.311553]
[1761815403046,0.5685529,110570.0,110560.0,0.314273]
[1761815403047,0.5725529,110570.0,110560.0,0.314273]
[1761815403250,0.5725529,110570.0,110560.0,0.311553]
[1761815404150,0.5745529,110570.0,110560.0,0.311553]
[1761815404649,0.5745529,110570.0,110560.0,0.4646902]
[1761815405651,0.5745529,110570.0,110560.0,0.47389455]
[1761815405951,0.5745529,110570.0,110560.0,0.4646902]
[1761815407051,0.5745529,110570.0,110560.0,0.1496102]
[1761815407355,0.61386568,110570.0,110560.0,0.4646102]
[1761815407850,0.59580568,110570.0,110560.0,0.6265531]
[1761815408048,0.2137529,110570.0,110560.0,0.6265531]
[1761815409257,0.23501464,110570.0,110560.0,0.6265531]
[1761815411252,0.26586464,110570.0,110560.0,0.4644102]
[1761815411554,0.78860754,110570.0,110560.0,0.0458]
[1761815411751,0.62666464,110570.0,110560.0,0.36056]
[1761815412257,0.61387464,110570.0,110560.0,0.6263131]
[1761815412853,0.61387464,110570.0,110560.0,0.4643702]
[1761815413152,0.25307464,110570.0,110560.0,0.4643702]
[1761815414850,0.42900754,110570.0,110560.0,0.3738]
[1761815415052,0.26706464,110570.0,110560.0,0.3738]
[1761815415552,0.25307464,110570.0,110560.0,0.4642502]
[1761815417059,0.25307464,110570.0,110560.0,0.1495702]
[1761815417260,0.25307464,110570.0,110560.0,0.4642502]
[1761815419665,0.25307464,110570.0,110560.0,0.33783]
[1761815419666,0.78935754,110570.0,110560.0,0.33783]
[1761815419863,0.78935754,110570.0,110560.0,0.36024]
[1761815420962,0.62741464,110570.0,110560.0,0.36024]
[1761815421765,0.78935754,110570.0,110560.0,0.36024]
[1761815421965,0.61387464,110570.0,110560.0,0.4639502]
[1761815423265,0.61387464,110570.0,110560.0,0.3735]
[1761815424070,0.63808423,110570.0,110560.0,0.05898]
[1761815424362,0.81356713,110570.0,110560.0,0.36008]
[1761815424668,0.65162423,110570.0,110560.0,0.36008]
[1761815424869,0.65162423,110570.0,110560.0,0.04572]
[1761815425065,0.65162423,110570.0,110560.0,0.37334]
[1761815426873,0.47614133,110570.0,110560.0,0.4637902]
[1761815427073,0.63808423,110570.0,110560.0,0.1494302]
[1761815427264,0.63808423,110570.0,110550.0,0.1349343]
[1761815427265,0.04309,110560.0,110550.0,0.1349343]
[1761815427468,0.24435464,110560.0,110550.0,0.4624343]
[1761815427976,0.22629464,110560.0,110550.0,0.4624343]
[1761815428369,0.06435174,110560.0,110550.0,0.4624343]
[1761815428569,0.23029464,110560.0,110550.0,0.4624343]
[1761815428966,0.23029464,110560.0,110550.0,0.1481943]
[1761815429172,0.23029464,110560.0,110550.0,0.4623943]
[1761815429473,0.02526174,110560.0,110550.0,0.67302192]
[1761815430269,0.004,110560.0,110550.0,0.67302192]
[1761815430775,0.02543946,110560.0,110550.0,1.03382192]
[1761815431576,0.02543946,110560.0,110550.0,1.03654192]
[1761815432471,0.02543946,110560.0,110550.0,0.87459902]
[1761815432673,0.02543946,110560.0,110550.0,1.03654192]
[1761815433875,0.02543946,110560.0,110550.0,1.76654192]
[1761815434085,0.02543946,110560.0,110550.0,1.63654192]
[1761815435580,0.02543946,110560.0,110550.0,1.63382192]
[1761815435879,0.02543946,110560.0,110550.0,1.63654192]
[1761815436272,0.02543946,110560.0,110550.0,1.03654192]
[1761815437774,0.02543946,110560.0,110550.0,1.25654192]
[1761815438882,0.02543946,110560.0,110550.0,1.85654192]
[1761815439182,0.02543946,110560.0,110550.0,1.63626192]
[1761815439378,0.02543946,110560.0,110550.0,1.63637014]
[1761815440382,0.02543946,110560.0,110550.0,1.47431902]
[1761815440586,0.02543946,110560.0,110550.0,1.63637014]
[1761815440777,0.05611,110550.0,110540.0,0.10652472]
[1761815440977,0.99640946,110550.0,110540.0,0.28316472]
[1761815441186,0.99640946,110550.0,110540.0,0.54848]
[1761815441187,0.91846058,110550.0,110540.0,0.54848]
[1761815441373,0.91846058,110550.0,110540.0,0.52607]
[1761815441577,0.91846058,110550.0,110540.0,0.56169622]
[1761815441877,0.91846058,110550.0,110540.0,0.56169993]
[1761815442183,1.06846058,110550.0,110540.0,0.56169993]
[1761815442387,1.18946058,110550.0,110540.0,0.56169993]
[1761815442585,0.86946058,110550.0,110540.0,0.56169993]
[1761815442780,0.63946058,110550.0,110540.0,0.54848]
[1761815442982,0.61946058,110550.0,110540.0,0.56174]
[1761815444980,0.45740946,110550.0,110540.0,0.56174]
[1761815445282,0.61946058,110550.0,110540.0,0.56174]
[1761815445891,0.44438946,110550.0,110540.0,0.56174]
[1761815446085,0.60644058,110550.0,110540.0,0.56174]
[1761815451299,0.7815117,110550.0,110540.0,0.02207]
[1761815451501,0.05598,110540.0,110530.0,0.0024]
[1761815451703,1.20833058,110540.0,110530.0,0.0024]
[1761815452201,1.30827127,110540.0,110530.0,0.0024]
[1761815452405,0.05673,110520.0,110510.0,1.5]
[1761815452596,1.31399,110520.0,110510.0,1.81408]
[1761815452791,1.63809224,110520.0,110510.0,1.81408]
[1761815454311,1.64696614,110520.0,110510.0,1.81404]
[1761815454504,0.82045,110520.0,110510.0,1.82665]
[1761815454710,1.13250112,110520.0,110510.0,1.82665]
[1761815455002,1.54250112,110520.0,110510.0,1.82665]
[1761815455308,1.71809224,110520.0,110510.0,1.82669]
[1761815455510,1.70455224,110520.0,110510.0,1.82669]
[1761815455709,1.58555224,110520.0,110510.0,1.82669]
[1761815456009,1.26145,110520.0,110510.0,1.82669]
[1761815456206,0.94550112,110520.0,110510.0,1.5]
[1761815456411,1.48904112,110520.0,110510.0,1.81412]
[1761815456608,1.48904112,110520.0,110510.0,1.82673]
[1761815456810,1.29550112,110520.0,110510.0,1.82673]
[1761815457002,1.29650112,110520.0,110510.0,1.82673]
[1761815457512,1.08650112,110520.0,110510.0,1.82673]
[1761815458704,0.94650112,110520.0,110510.0,1.51261]
[1761815458906,0.94650112,110520.0,110510.0,1.82669]
[1761815460511,0.02181853,110540.0,110510.0,1.98874112]
[1761815460512,0.3608,110530.0,110510.0,1.98874112]
[1761815460702,0.37646,110530.0,110520.0,0.1480729]
[1761815460902,0.54499112,110530.0,110520.0,0.1480729]
[1761815461313,0.52285112,110530.0,110520.0,0.1480729]
[1761815461810,0.56704112,110530.0,110520.0,0.05759]
[1761815462016,0.56704112,110530.0,110520.0,0.37171]
[1761815462017,0.59624112,110530.0,110520.0,0.37171]
[1761815462308,0.60024112,110530.0,110520.0,0.05759]
[1761815462515,0.60024112,110530.0,110520.0,0.37171]
[1761815463314,0.58670112,110530.0,110520.0,0.37171]
[1761815463711,0.05673,110520.0,110510.0,1.5]
[1761815463911,1.00729224,110520.0,110510.0,1.8146]
[1761815464117,0.84524112,110520.0,110510.0,1.8146]
[1761815465114,0.84624112,110520.0,110510.0,1.8146]
[1761815465413,1.21724112,110520.0,110510.0,1.8156]
[1761815465612,1.21724112,110520.0,110510.0,1.82821]
[1761815466707,1.21724112,110520.0,110510.0,1.51361]
[1761815466902,1.21724112,110520.0,110510.0,1.8156]
[1761815467105,1.21724112,110520.0,110510.0,1.501]
[1761815467307,1.37929224,110520.0,110510.0,1.8156]
[1761815470516,1.37929224,110520.0,110510.0,1.82821]
[1761815471512,1.37929224,110520.0,110510.0,1.8156]
[1761815471810,1.42517369,110520.0,110510.0,1.84161095]
[1761815472205,1.42517369,110520.0,110510.0,1.52701095]
[1761815472407,1.42517369,110520.0,110510.0,1.84145095]
[1761815473613,1.42517369,110520.0,110510.0,1.84141095]
[1761815474118,2.02789369,110520.0,110510.0,0.01440095]
[1761815474306,1.42789369,110520.0,110510.0,0.01440095]
[1761815474616,1.42517369,110520.0,110510.0,0.01440095]
[1761815475410,1.73953369,110520.0,110510.0,0.01440095]
[1761815475713,1.73953369,110520.0,110510.0,0.03553095]
[1761815475915,1.73953369,110520.0,110510.0,0.05694095]
[1761815478616,1.73953369,110520.0,110510.0,0.01440095]
[1761815479212,1.83935438,110520.0,110510.0,0.01440095]
[1761815480111,2.43935438,110520.0,110510.0,0.01440095]
[1761815480920,2.12511438,110520.0,110510.0,0.05940095]
[1761815481110,2.02517369,110520.0,110510.0,0.01440095]
[1761815481710,2.33933369,110520.0,110510.0,0.01440095]
[1761815484416,2.33933369,110520.0,110510.0,0.01442395]
[1761815485420,2.02517369,110520.0,110510.0,0.01442395]
[1761815485725,2.33929369,110520.0,110510.0,0.01442395]
[1761815486119,1.47929369,110520.0,110510.0,0.05942395]
[1761815486521,1.16517369,110520.0,110510.0,0.05942395]
[1761815486729,1.47921369,110520.0,110510.0,0.05942395]
[1761815487730,0.93517369,110520.0,110510.0,0.07333395]
[1761815488028,1.24917369,110520.0,110510.0,0.07333395]
[1761815488628,0.93517369,110520.0,110510.0,0.07333395]
[1761815488829,0.59753145,110520.0,110510.0,0.07333395]
[1761815489033,0.58187145,110520.0,110510.0,0.07333395]
[1761815489331,0.61392257,110520.0,110510.0,0.07333395]
[1761815489826,0.42759692,110520.0,110510.0,0.07333395]
[1761815490027,0.58964804,110520.0,110510.0,0.07314831]
[1761815492226,0.58964804,110520.0,110510.0,0.38714831]
[1761815492425,0.61377736,110520.0,110510.0,0.38714831]
[1761815495136,0.64605682,110520.0,110510.0,0.38714831]
[1761815497138,0.6219275,110520.0,110510.0,0.38714831]
[1761815499239,0.61385645,110520.0,110510.0,0.37391]
[1761815499427,0.77623959,110520.0,110510.0,0.37391]
[1761815500637,0.77623959,110520.0,110510.0,0.4644005]
[1761815501539,0.45180533,110520.0,110510.0,0.4644005]
[1761815501727,0.78977959,110520.0,110510.0,0.33781]
[1761815501932,0.78977959,110520.0,110510.0,0.3598]
[1761815502538,0.76557118,110520.0,110510.0,0.3598]
[1761815503546,0.76557118,110520.0,110510.0,0.37300933]
[1761815504034,0.76557118,110520.0,110510.0,0.37371]
[1761815505142,0.75203118,110520.0,110510.0,0.05991]
[1761815505345,0.76769118,110520.0,110510.0,0.37363]
[1761815505533,0.78123118,110520.0,110510.0,0.37363]
[1761815505733,0.95344831,110520.0,110510.0,0.001]
[1761815505938,2.40137672,110520.0,110510.0,0.001]
[1761815506143,1.80137672,110520.0,110510.0,0.001]
[1761815506445,1.48765672,110520.0,110510.0,0.001]
[1761815506842,1.80157672,110520.0,110510.0,0.001]
[1761815509445,1.83385618,110520.0,110510.0,0.001]
[1761815509748,1.82584867,110520.0,110510.0,0.001]
[1761815511450,2.42584867,110520.0,110510.0,0.001]
[1761815512650,2.11192867,110520.0,110510.0,0.001]
[1761815513441,2.42568867,110520.0,110510.0,0.001]
[1761815515544,2.11192867,110520.0,110510.0,0.001]
[1761815515947,2.42560867,110520.0,110510.0,0.001]
[1761815516244,0.04231,110490.0,110480.0,1.5215955]
[1761815516450,0.58693405,110490.0,110480.0,1.5215955]
[1761815517647,0.58793405,110490.0,110480.0,1.5235955]
[1761815518251,0.58793405,110490.0,110480.0,1.6141107]
[1761815518445,0.06491692,110490.0,110480.0,2.37904783]
[1761815518748,0.58793405,110490.0,110480.0,2.2141107]
[1761815519049,0.58793405,110490.0,110480.0,2.28581263]
[1761815519252,0.58793405,110490.0,110480.0,2.1235955]
[1761815523653,0.58793405,110490.0,110480.0,2.5276307]
[1761815525045,0.42571692,110490.0,110480.0,2.5276307]
[1761815525562,0.56532713,110500.0,110490.0,0.05891]
[1761815526558,0.56532713,110500.0,110490.0,0.149417]
[1761815526756,0.72754426,110500.0,110490.0,0.149417]
[1761815526959,0.72754426,110500.0,110490.0,0.150417]
[1761815527347,0.36674426,110500.0,110490.0,0.150417]
[1761815527552,0.72854426,110500.0,110490.0,0.150417]
[1761815528263,0.70732426,110500.0,110490.0,0.150417]
[1761815528452,0.72854426,110500.0,110490.0,0.150417]
[1761815529262,0.3618,110500.0,110490.0,0.150417]
[1761815529454,0.68623426,110500.0,110490.0,0.750417]
[1761815529657,0.52401713,110500.0,110490.0,0.750417]
[1761815529955,0.16321713,110500.0,110490.0,0.750417]
[1761815530157,0.20552713,110500.0,110490.0,0.91263413]
[1761815531955,0.04331,110500.0,110490.0,0.91263413]
[1761815532157,0.20552713,110500.0,110490.0,0.750417]
[1761815532764,0.20552713,110500.0,110490.0,0.91263413]
[1761815533058,0.04331,110500.0,110490.0,0.91263413]
[1761815533260,0.20552713,110500.0,110490.0,1.22603413]
[1761815534177,0.20552713,110500.0,110490.0,1.063817]
[1761815534376,0.72854426,110500.0,110490.0,0.97331]
[1761815534572,0.74420426,110500.0,110490.0,0.05991]
[1761815534874,0.76842319,110500.0,110490.0,0.37327]
[1761815535970,0.76842319,110500.0,110490.0,0.05991]
[1761815536173,0.78144319,110500.0,110490.0,0.04593]
[1761815536873,1.09480319,110500.0,110490.0,0.001]
[1761815537570,1.11648947,110500.0,110490.0,0.001]
[1761815537773,0.80312947,110500.0,110490.0,0.001]
[1761815537973,1.11648947,110500.0,110490.0,0.02361]
[1761815538169,1.11648947,110500.0,110490.0,0.001]
[1761815538376,0.83542138,110500.0,110490.0,0.04481]
[1761815538580,1.12452245,110500.0,110490.0,0.04481]
[1761815539169,1.13365276,110500.0,110490.0,0.04481]
[1761815539375,1.13365276,110500.0,110490.0,0.0447]
[1761815539581,1.1256211,110500.0,110490.0,0.0447]
[1761815541877,1.11649079,110500.0,110490.0,0.0447]
[1761815542079,1.11649624,110500.0,110490.0,0.0447]
[1761815542586,1.12535705,110500.0,110490.0,0.02281]
[1761815542887,1.11649624,110500.0,110490.0,0.0439]
[1761815543486,1.11649624,110500.0,110490.0,0.02281]
[1761815543692,1.11649624,110500.0,110490.0,0.001]
[1761815543987,1.11649624,110500.0,110490.0,0.02281]
[1761815544186,1.11649624,110500.0,110490.0,0.001]
[1761815545089,0.79206198,110500.0,110490.0,0.0439]
[1761815545388,1.69649624,110500.0,110490.0,0.001]
[1761815545686,1.38317624,110500.0,110490.0,0.001]
[1761815545990,1.7052497,110500.0,110490.0,0.001]
[1761815546793,0.03526,110460.0,110450.0,0.02181]
[1761815547087,1.09355745,110460.0,110450.0,0.0429]
[1761815547283,1.09355745,110460.0,110450.0,1.5429]
[1761815547988,1.0936364,110460.0,110450.0,1.55558]
[1761815548290,1.0936364,110460.0,110430.0,0.05558]
[1761815548291,0.04471,110440.0,110430.0,0.05558]
[1761815548475,0.20592713,110440.0,110430.0,0.21779713]
[1761815548786,9.969e-05,110440.0,110430.0,2.48263373]
[1761815549186,9.969e-05,110440.0,110430.0,2.48535373]
[1761815549592,0.00109969,110440.0,110430.0,2.48263373]
[1761815549882,0.00109969,110440.0,110430.0,2.3204166]
[1761815550085,0.00309969,110440.0,110430.0,2.48263373]
[1761815550282,0.00309969,110440.0,110430.0,2.49450629]
[1761815551389,0.00309969,110440.0,110430.0,2.60450629]
[1761815552089,0.00309969,110440.0,110430.0,2.49450629]
[1761815553492,0.00309969,110440.0,110430.0,2.75450629]
[1761815554781,0.00309969,110440.0,110430.0,3.35450629]
[1761815556193,0.00309969,110440.0,110430.0,2.75450629]
[1761815556392,0.54525713,110470.0,110460.0,0.05495]
[1761815556598,0.58275166,110470.0,110460.0,0.36847]
[1761815556798,0.60522166,110470.0,110460.0,0.36847]
[1761815557296,0.60522166,110470.0,110460.0,0.53068713]
[1761815557595,0.60522166,110470.0,110460.0,0.62121873]
[1761815557787,0.06654453,110470.0,110460.0,1.74423586]
[1761815557987,0.59197936,110490.0,110480.0,0.1460952]
[1761815558186,0.64615007,110490.0,110480.0,0.05558]
[1761815558487,0.64301376,110490.0,110480.0,0.36922]
[1761815558688,0.62947376,110490.0,110480.0,0.36922]
[1761815559095,0.62947376,110490.0,110480.0,0.4597352]
[1761815559394,0.62947376,110490.0,110480.0,0.46864639]
[1761815559885,0.63347376,110490.0,110480.0,0.46964639]
[1761815561299,0.64711995,110490.0,110480.0,0.0439]
[1761815561694,0.64711995,110490.0,110480.0,0.05658]
[1761815561893,0.64711995,110490.0,110480.0,0.0439]
[1761815562197,1.40944327,110490.0,110480.0,0.001]
[1761815562501,2.01752735,110490.0,110480.0,0.001]
[1761815562694,1.85520403,110490.0,110480.0,0.001]
[1761815566492,2.01752735,110490.0,110480.0,0.001]
[1761815567501,1.85520403,110490.0,110480.0,0.001]
[1761815567710,1.41752735,110490.0,110480.0,0.001]
[1761815570005,1.25520403,110490.0,110480.0,0.001]
[1761815570904,1.05520403,110490.0,110480.0,0.001]
[1761815571203,1.22520403,110490.0,110480.0,0.001]
[1761815573906,1.27368439,110490.0,110480.0,0.001]
[1761815574100,1.87368439,110490.0,110480.0,0.001]
[1761815574400,1.84134808,110490.0,110480.0,0.001]
[1761815574990,1.51134808,110490.0,110480.0,0.001]
[1761815575298,1.84134808,110490.0,110480.0,0.001]
[1761815576199,1.55134808,110490.0,110480.0,0.001]
[1761815576407,0.93519943,110490.0,110480.0,0.04621]
[1761815576704,0.96895943,110490.0,110480.0,0.04621]
[1761815577110,0.99895943,110490.0,110480.0,0.04621]
[1761815577301,1.25895943,110490.0,110480.0,0.04621]
[1761815577603,1.25883943,110490.0,110480.0,0.04621]
[1761815578406,1.49883943,110490.0,110480.0,0.0235]
[1761815579203,1.49883943,110490.0,110480.0,0.001]
[1761815581407,2.09883943,110490.0,110480.0,0.001]
[1761815582504,2.11498808,110490.0,110480.0,0.001]
[1761815583007,2.11498808,110490.0,110480.0,0.0235]
[1761815583209,2.11498808,110490.0,110480.0,0.001]
[1761815583604,1.20134808,110490.0,110480.0,0.04621]
[1761815583809,1.09486808,110490.0,110480.0,0.04621]
[1761815584110,1.26486808,110490.0,110480.0,0.001]
[1761815584303,1.55486808,110490.0,110480.0,0.001]
[1761815584807,1.55486808,110490.0,110480.0,0.04621]
[1761815585206,1.24134808,110490.0,110480.0,0.001]
[1761815585406,1.55482808,110490.0,110480.0,0.04621]
[1761815585606,1.24134808,110490.0,110480.0,0.04621]
[1761815585801,1.55482808,110490.0,110480.0,0.04621]
[1761815586003,1.24134808,110490.0,110480.0,0.04621]
[1761815586202,1.55482808,110490.0,110480.0,0.04621]
[1761815586398,1.12482808,110490.0,110480.0,0.0235]
[1761815586898,1.47482808,110490.0,110480.0,0.0235]
[1761815587205,1.47482808,110490.0,110480.0,0.001]
[1761815587807,1.47482808,110490.0,110480.0,0.0235]
[1761815588010,1.31250476,110490.0,110480.0,0.0235]
[1761815588208,1.16134808,110490.0,110480.0,0.0235]
[1761815588409,1.06474808,110490.0,110480.0,0.0235]
[1761815588613,1.66474808,110490.0,110480.0,0.0235]
[1761815588798,1.66474808,110490.0,110480.0,0.04621]
[1761815589305,2.03474808,110490.0,110480.0,0.001]
[1761815590310,2.03474808,110490.0,110480.0,0.0235]
[1761815591212,2.03474808,110490.0,110480.0,0.001]
[1761815591512,2.03474808,110490.0,110480.0,0.0235]
[1761815592411,2.03474808,110490.0,110480.0,0.001]
[1761815592412,2.01861849,110490.0,110480.0,0.001]
[1761815593710,1.41861849,110490.0,110480.0,0.001]
[1761815595114,1.41861849,110490.0,110480.0,0.0235]
[1761815595313,1.41861849,110490.0,110480.0,0.04676]
[1761815595513,1.41861849,110490.0,110480.0,0.0235]
[1761815595714,1.41861849,110490.0,110480.0,0.001]
[1761815597417,1.46709885,110490.0,110480.0,0.001]
[1761815598912,1.46709885,110490.0,110480.0,0.04514]
[1761815599217,1.46685885,110490.0,110480.0,0.001]
[1761815603421,1.30453553,110490.0,110480.0,0.02264]
[1761815603721,2.06685885,110490.0,110480.0,0.001]
[1761815604219,2.03450808,110490.0,110480.0,0.001]
[1761815605115,2.0183941,110490.0,110480.0,0.001]
[1761815606027,1.4183941,110490.0,110480.0,0.001]
[1761815606228,1.43450808,110490.0,110480.0,0.001]
[1761815609330,1.43450808,110490.0,110480.0,0.02264]
[1761815609530,1.43450808,110490.0,110480.0,0.001]
[1761815614233,1.51450808,110490.0,110480.0,0.001]
[1761815614431,1.6768314,110490.0,110480.0,0.001]
[1761815614829,1.51450808,110490.0,110480.0,0.001]
[1761815615826,1.6768314,110490.0,110480.0,0.001]
[1761815616032,0.05784,110460.0,110450.0,0.05743]
[1761815616231,0.93161772,110460.0,110450.0,0.04475]
[1761815616433,0.91595772,110460.0,110450.0,0.04475]
[1761815616633,0.91595772,110460.0,110450.0,0.05375016]
[1761815616833,0.91595772,110460.0,110450.0,0.04475]
[1761815617629,0.7536344,110460.0,110450.0,0.05859]
[1761815617933,0.4285544,110460.0,110450.0,0.06159]
[1761815618235,0.0677544,110460.0,110450.0,0.32338584]
[1761815618434,0.0677544,110460.0,110450.0,0.32710584]
[1761815619031,0.0677544,110460.0,110450.0,0.32438584]
[1761815619423,0.0677544,110460.0,110450.0,0.23384604]
[1761815620829,0.0677544,110460.0,110450.0,0.32438584]
[1761815621437,0.0677544,110460.0,110450.0,0.68521645]
[1761815621824,0.0677544,110460.0,110450.0,0.59467665]
[1761815622029,0.23010833,110460.0,110450.0,0.59467665]
[1761815623335,0.0677544,110460.0,110450.0,0.59467665]
[1761815623524,0.23010833,110460.0,110450.0,0.59467665]
[1761815623929,0.24302833,110460.0,110450.0,0.23387665]
[1761815624136,0.26730121,110460.0,110450.0,0.22003665]
[1761815624335,0.26730121,110460.0,110450.0,0.05768272]
[1761815624637,0.26730121,110460.0,110450.0,0.22003665]
[1761815624831,0.26730121,110460.0,110450.0,0.23387665]
[1761815625031,0.25438121,110460.0,110450.0,0.23387665]
[1761815626029,0.25438121,110460.0,110450.0,0.07152272]
[1761815626235,0.25438121,110460.0,110450.0,0.23387665]
[1761815626737,0.25438121,110460.0,110450.0,0.07152272]
[1761815626929,0.25438121,110460.0,110450.0,0.23387665]
[1761815627937,0.25438121,110460.0,110450.0,0.07152272]
[1761815628237,0.09202728,110460.0,110450.0,0.32441775]
[1761815628434,0.0677544,110460.0,110450.0,0.23387665]
[1761815629934,0.59090833,110460.0,110450.0,0.07152272]
[1761815630135,0.61518121,110460.0,110450.0,0.23387665]
[1761815630339,0.63084121,110460.0,110450.0,0.23387665]
[1761815632040,0.63084121,110460.0,110450.0,0.22494393]
[1761815632434,0.61933833,110460.0,110450.0,0.04875]
[1761815633244,0.61933833,110460.0,110450.0,0.06173]
[1761815633740,0.60656833,110460.0,110450.0,0.06173]
[1761815634740,0.60656833,110460.0,110450.0,0.07077116]
[1761815635136,0.60656833,110460.0,110450.0,0.23312509]
[1761815635836,0.60656833,110460.0,110450.0,0.07077116]
[1761815636036,0.61933833,110460.0,110450.0,0.07077116]
[1761815636742,0.60656833,110460.0,110450.0,0.16131226]
[1761815636942,0.60656833,110460.0,110450.0,0.32366619]
[1761815637342,0.60656833,110460.0,110450.0,0.23312509]
[1761815637838,0.4569844,110460.0,110450.0,0.05779116]
[1761815638038,0.4569844,110460.0,110450.0,0.07077116]
[1761815638039,0.61933833,110460.0,110450.0,0.07077116]
[1761815638240,0.61933833,110460.0,110450.0,0.23312509]
[1761815638742,0.4442144,110460.0,110450.0,0.32365969]
[1761815638949,0.3809144,110460.0,110450.0,0.32365969]
[1761815639238,0.0228344,110460.0,110450.0,0.44365969]
[1761815639634,0.0458744,110460.0,110450.0,0.44365969]
[1761815640236,0.0689544,110460.0,110450.0,0.28130576]
[1761815640732,0.0689544,110460.0,110450.0,0.44365969]
[1761815641338,0.0689544,110460.0,110450.0,0.28130576]
[1761815641845,0.0228344,110460.0,110450.0,0.44365969]
[1761815642045,0.0458744,110460.0,110450.0,0.44365969]
[1761815642241,0.0228344,110460.0,110450.0,0.66365969]
[1761815642447,0.0228344,110460.0,110450.0,0.66637969]
[1761815642646,0.0228344,110460.0,110450.0,1.26637969]
[1761815642833,0.74435288,110470.0,110460.0,0.04504]
[1761815643039,0.72008,110470.0,110460.0,0.22037393]
[1761815643447,0.37494,110470.0,110460.0,0.22037393]
[1761815644348,0.37594,110470.0,110460.0,0.22237393]
[1761815644849,0.06278,110470.0,110460.0,0.22237393]
[1761815645049,0.06278,110470.0,110460.0,0.31290033]
[1761815645252,0.22513393,110470.0,110460.0,0.31390033]
[1761815646756,0.04712,110470.0,110460.0,0.31390033]
[1761815646949,0.20947393,110470.0,110460.0,0.31390033]
[1761815648155,0.20947393,110470.0,110460.0,0.1515464]
[1761815648458,0.04712,110470.0,110460.0,0.31390033]
[1761815648654,0.001,110470.0,110460.0,0.47625426]
[1761815648956,0.04712,110470.0,110460.0,0.47625426]
[1761815649354,0.43119288,110480.0,110470.0,0.1485382]